fUSD/lending_fUSD_20250505
["ID","MTS","AMOUNT","RATE_DAILY","PERIOD"]
[360026670,1746487841613,-470.0,0.00019998,2]
[360026673,1746487841622,-199.30254999,0.00019998,2]
[360026676,1746487841631,-450.0,0.00019998,2]
[360026679,1746487841640,-534.02031904,0.00019998,2]
[360026681,1746487841650,-450.0,0.00019998,2]
[360026683,1746487841658,-150.0,0.00019998,2]
[360026685,1746487841667,-242.63340669,0.00019998,2]
[360026688,1746487841676,-450.0,0.00019998,2]
[360026691,1746487841686,-150.0,0.00019998,2]
[360026693,1746487841695,-450.0,0.00019998,2]
[360026696,1746487841704,-450.0,0.00019998,2]
[360026698,1746487841713,-450.0,0.00019998,2]
[360026701,1746487841722,-450.0,0.00019998,2]
[360026703,1746487841732,-450.0,0.00019998,2]
[360026706,1746487841741,-150.0,0.00019998,2]
[360026708,1746487841750,-450.0,0.00019998,2]
[360026711,1746487841759,-450.0,0.00019998,2]
[360026714,1746487841768,-450.0,0.00019998,2]
[360026716,1746487841777,-450.0,0.00019998,2]
[360026719,1746487841787,-450.0,0.00019998,2]
[360026721,1746487841797,-450.0,0.00019998,2]
[360026724,1746487841806,-450.0,0.00019998,2]
[360026727,1746487841815,-450.0,0.00019998,2]
[360026729,1746487841825,-450.0,0.00019998,2]
[360026732,1746487841834,-450.0,0.00019998,2]
[360026735,1746487841843,-3837.52,0.00019998,2]
[360026737,1746487841852,-379.97,0.00019998,2]
[360026739,1746487841861,-450.0,0.00019998,2]
[360026741,1746487841871,-313.95,0.00019998,2]
[360026744,1746487841880,-450.0,0.00019998,2]
[360026746,1746487841890,-450.0,0.00019998,2]
[360026749,1746487841900,-489.25,0.00019998,2]
[360026752,1746487841909,-450.0,0.00019998,2]
[360026754,1746487841918,-450.0,0.00019998,2]
[360026757,1746487841927,-560.55,0.00019998,2]
[360026760,1746487841937,-450.0,0.00019998,2]
[360026762,1746487841946,-450.0,0.00019998,2]
[360026765,1746487841955,-450.0,0.00019998,2]
[360026767,1746487841964,-450.0,0.00019998,2]
[360026768,1746487841974,-450.0,0.00019998,2]
[360026770,1746487841983,-450.0,0.00019998,2]
[360026771,1746487841991,-450.0,0.00019998,2]
[360026773,1746487842000,-450.0,0.00019998,2]
[360026775,1746487842009,-512.2,0.00019998,2]
[360026776,1746487842018,-450.0,0.00019998,2]
[360026778,1746487842027,-450.0,0.00019998,2]
[360026780,1746487842035,-450.0,0.00019998,2]
[360026781,1746487842045,-450.0,0.00019998,2]
[360026783,1746487842054,-450.0,0.00019998,2]
[360026785,1746487842063,-450.0,0.00019998,2]
[360026786,1746487842072,-482.41,0.00019998,2]
[360026788,1746487842081,-450.0,0.00019998,2]
[360026790,1746487842090,-450.0,0.00019998,2]
[360026791,1746487842100,-450.0,0.00019998,2]
[360026793,1746487842109,-450.0,0.00019998,2]
[360026795,1746487842118,-450.0,0.00019998,2]
[360026796,1746487842127,-450.0,0.00019998,2]
[360026797,1746487842136,-450.0,0.00019998,2]
[360026798,1746487842145,-450.0,0.00019998,2]
[360026799,1746487842155,-450.0,0.00019998,2]
[360026800,1746487842165,-450.0,0.00019998,2]
[360026802,1746487842174,-450.0,0.00019998,2]
[360026804,1746487842183,-450.0,0.00019998,2]
[360026807,1746487842192,-450.0,0.00019998,2]
[360026810,1746487842201,-450.0,0.00019998,2]
[360026813,1746487842214,-450.0,0.00019998,2]
[360026816,1746487842224,-220.90000001,0.00019998,2]
[360026819,1746487842233,-450.0,0.00019998,2]
[360026821,1746487842242,-450.0,0.00019998,2]
[360026823,1746487842251,-457.72,0.00019998,2]
[360026825,1746487842261,-457.72,0.00019998,2]
[360026827,1746487842270,-450.0,0.00019998,2]
[360026829,1746487842279,-450.0,0.00019998,2]
[360026831,1746487842288,-450.0,0.00019998,2]
[360026833,1746487842297,-450.0,0.00019998,2]
[360026835,1746487842306,-450.0,0.00019998,2]
[360026837,1746487842316,-450.0,0.00019998,2]
[360026839,1746487842325,-450.0,0.00019998,2]
[360026841,1746487842334,-450.0,0.00019998,2]
[360026843,1746487842343,-450.0,0.00019998,2]
[360026845,1746487842353,-450.0,0.00019998,2]
[360026847,1746487842362,-450.0,0.00019998,2]
[360026849,1746487842371,-7571.95,0.00019998,2]
[360026851,1746487842380,-554.7969361,0.00019998,2]
[360026853,1746487842390,-450.0,0.00019998,2]
[360026855,1746487842399,-450.0,0.00019998,2]
[360026857,1746487842408,-560.15,0.00019998,2]
[360026858,1746487842417,-450.0,0.00019998,2]
[360026859,1746487842427,-450.0,0.00019998,2]
[360026860,1746487842437,-450.0,0.00019998,2]
[360026861,1746487842446,-450.0,0.00019998,2]
[360026862,1746487842455,-450.0,0.00019998,2]
[360026863,1746487842465,-450.0,0.00019998,2]
[360026864,1746487842474,-450.0,0.00019998,2]
[360026865,1746487842483,-450.0,0.00019998,2]
[360026866,1746487842492,-450.0,0.00019998,2]
[360026867,1746487842502,-450.0,0.00019998,2]
[360026868,1746487842511,-450.0,0.00019998,2]
[360026869,1746487842520,-450.0,0.00019998,2]
[360026870,1746487842529,-450.0,0.00019998,2]
[360026871,1746487842538,-450.0,0.00019998,2]
[360026872,1746487842547,-450.0,0.00019998,2]
[360026873,1746487842556,-450.0,0.00019998,2]
[360026874,1746487842565,-500.0,0.00019999,2]
[360026875,1746487842574,-300.0,0.00019999,2]
[360026876,1746487842583,-159.1047002,0.00019999,2]
[360026877,1746487842592,-450.0,0.00019999,2]
[360026878,1746487842601,-450.0,0.00019999,2]
[360026879,1746487842610,-450.0,0.00019999,2]
[360026880,1746487842619,-450.0,0.00019999,2]
[360026881,1746487842628,-450.0,0.00019999,2]
[360026882,1746487842637,-450.0,0.00019999,2]
[360026883,1746487842646,-450.0,0.00019999,2]
[360026884,1746487842655,-450.0,0.00019999,2]
[360026885,1746487842664,-450.0,0.00019999,2]
[360026886,1746487842673,-450.0,0.00019999,2]
[360026887,1746487842682,-450.0,0.00019999,2]
[360026888,1746487842691,-450.0,0.00019999,2]
[360026889,1746487842700,-450.0,0.00019999,2]
[360026890,1746487842709,-450.0,0.00019999,2]
[360026891,1746487842718,-479.22,0.00019999,2]
[360026892,1746487842727,-450.0,0.00019999,2]
[360026893,1746487842736,-450.0,0.00019999,2]
[360026894,1746487842747,-450.0,0.00019999,2]
[360026895,1746487842756,-450.0,0.00019999,2]
[360026896,1746487842765,-176.18230561,0.00019999,2]
[360026897,1746487842775,-450.0,0.00019999,2]
[360026898,1746487842784,-383.1,0.00019999,2]
[360026899,1746487842794,-156.15,0.00019999,2]
[360026901,1746487842803,-450.0,0.00019999,2]
[360026902,1746487842812,-150.0,0.00019999,2]
[360026903,1746487842821,-500.0,0.00019999,2]
[360026904,1746487842830,-150.0,0.00019999,2]
[360026905,1746487842839,-500.0,0.00019999,2]
[360026906,1746487842850,-150.0,0.00019999,2]
[360026907,1746487842859,-450.0,0.00019999,2]
[360026908,1746487842868,-3837.52,0.00019999,2]
[360026909,1746487842877,-341.33,0.00019999,2]
[360026910,1746487842887,-3837.52,0.00019999,2]
[360026911,1746487842898,-3837.52,0.00019999,2]
[360026912,1746487842908,-3837.52,0.00019999,2]
[360026913,1746487842918,-3837.52,0.00019999,2]
[360026914,1746487842927,-3837.52,0.00019999,2]
[360026915,1746487842937,-3837.52,0.00019999,2]
[360026916,1746487842946,-3837.52,0.00019999,2]
[360026917,1746487842956,-3837.52,0.00019999,2]
[360026918,1746487842965,-3837.52,0.00019999,2]
[360026919,1746487842974,-3837.52,0.00019999,2]
[360026920,1746487842984,-3837.52,0.00019999,2]
[360026921,1746487842993,-3837.52,0.00019999,2]
[360026922,1746487843002,-3837.52,0.00019999,2]
[360026923,1746487843012,-3837.52,0.00019999,2]
[360026924,1746487843022,-3837.52,0.00019999,2]
[360026925,1746487843031,-3837.52,0.00019999,2]
[360026926,1746487843041,-3837.52,0.00019999,2]
[360026927,1746487843050,-3837.52,0.00019999,2]
[360026928,1746487843059,-3837.52,0.00019999,2]
[360026929,1746487843069,-3837.52,0.00019999,2]
[360026930,1746487843079,-3837.6421,0.00019999,2]
[360026931,1746487843089,-150.0,0.00019999,2]
[360026932,1746487843098,-500.0,0.00019999,2]
[360026933,1746487843108,-200.0,0.00019999,2]
[360026934,1746487843117,-150.0,0.00019999,2]
[360026935,1746487843127,-25847.09163926,0.00019999,2]
[360026936,1746487843136,-450.0,0.00019999,2]
[360026937,1746487843145,-450.0,0.00019999,2]
[360026938,1746487843154,-576.62,0.00019999,2]
[360026940,1746487843163,-450.0,0.00019999,2]
[360026941,1746487843172,-450.0,0.00019999,2]
[360026942,1746487843182,-596.89,0.00019999,2]
[360026943,1746487843192,-450.0,0.00019999,2]
[360026944,1746487843202,-450.0,0.00019999,2]
[360026945,1746487843215,-571.0,0.00019999,2]
[360026946,1746487843224,-450.0,0.00019999,2]
[360026947,1746487843234,-450.0,0.00019999,2]
[360026948,1746487843243,-450.0,0.00019999,2]
[360026949,1746487843254,-502.57,0.00019999,2]
[360026950,1746487843263,-450.0,0.00019999,2]
[360026951,1746487843273,-500.0,0.00019999,2]
[360026952,1746487843283,-450.0,0.00019999,2]
[360026953,1746487843293,-500.0,0.00019999,2]
[360026954,1746487843304,-450.0,0.00019999,2]
[360026956,1746487843314,-450.0,0.00019999,2]
[360026957,1746487843323,-450.0,0.00019999,2]
[360026958,1746487843332,-450.0,0.00019999,2]
[360026959,1746487843342,-450.0,0.00019999,2]
[360026960,1746487843351,-423.4,0.00019999,2]
[360026961,1746487843360,-450.0,0.00019999,2]
[360026962,1746487843370,-450.0,0.00019999,2]
[360026963,1746487843379,-40467.34088536,0.00019999,2]
[360026964,1746487843389,-581.21,0.00019999,2]
[360026965,1746487843398,-513.09,0.00019999,2]
[360026966,1746487843407,-450.0,0.00019999,2]
[360026967,1746487843417,-450.0,0.00019999,2]
[360026968,1746487843427,-450.0,0.00019999,2]
[360026969,1746487843436,-329.15,0.00019999,2]
[360026970,1746487843446,-450.0,0.00019999,2]
[360026971,1746487843455,-195.4,0.00019999,2]
[360026972,1746487843464,-266.44407434,0.00019999,2]
[360026973,1746487843474,-450.0,0.00019999,2]
[360026974,1746487843483,-450.0,0.00019999,2]
[360026975,1746487843493,-450.0,0.00019999,2]
[360026976,1746487843503,-450.0,0.00019999,2]
[360026977,1746487843512,-450.0,0.00019999,2]
[360026979,1746487843522,-450.0,0.00019999,2]
[360026986,1746487843667,-450.0,0.00019999,2]
[360026987,1746487843677,-450.0,0.00019999,2]
[360026988,1746487843687,-157.5,0.00019999,2]
[360026989,1746487843697,-450.0,0.00019999,2]
[360026990,1746487843706,-255.98716498,0.00019999,2]
[360026991,1746487843715,-450.0,0.00019999,2]
[360026992,1746487843725,-277.99,0.00019999,2]
[360026993,1746487843735,-450.0,0.00019999,2]
[360026994,1746487843744,-450.0,0.00019999,2]
[360026996,1746487843753,-450.0,0.00019999,2]
[360026997,1746487843762,-450.0,0.00019999,2]
[360026998,1746487843772,-450.0,0.00019999,2]
[360026999,1746487843781,-450.0,0.00019999,2]
[360027000,1746487843790,-450.0,0.00019999,2]
[360027001,1746487843800,-356.07,0.00019999,2]
[360027002,1746487843809,-450.0,0.00019999,2]
[360027003,1746487843819,-450.0,0.00019999,2]
[360027004,1746487843829,-450.0,0.00019999,2]
[360027005,1746487843838,-450.0,0.00019999,2]
[360027006,1746487843847,-387.54421219,0.00019999,2]
[360027007,1746487843857,-457.72,0.00019999,2]
[360027008,1746487843867,-457.72,0.00019999,2]
[360027009,1746487843876,-457.72,0.00019999,2]
[360027010,1746487843885,-457.72,0.00019999,2]
[360027011,1746487843894,-450.0,0.00019999,2]
[360027012,1746487843903,-457.72,0.00019999,2]
[360027013,1746487843913,-473.72,0.00019999,2]
[360027014,1746487843922,-457.72,0.00019999,2]
[360027015,1746487843932,-457.72,0.00019999,2]
[360027016,1746487843941,-450.0,0.00019999,2]
[360027017,1746487843950,-457.72,0.00019999,2]
[360027018,1746487843960,-450.0,0.00019999,2]
[360027019,1746487843969,-457.72,0.00019999,2]
[360027020,1746487843978,-450.0,0.00019999,2]
[360027021,1746487843987,-457.72,0.00019999,2]
[360027022,1746487843997,-450.0,0.00019999,2]
[360027023,1746487844006,-457.72,0.00019999,2]
[360027024,1746487844015,-450.0,0.00019999,2]
[360027025,1746487844025,-457.72,0.00019999,2]
[360027026,1746487844034,-450.0,0.00019999,2]
[360027027,1746487844044,-457.72,0.00019999,2]
[360027028,1746487844053,-450.0,0.00019999,2]
[360027029,1746487844062,-457.72,0.00019999,2]
[360027030,1746487844072,-450.0,0.00019999,2]
[360027031,1746487844081,-450.0,0.00019999,2]
[360027032,1746487844090,-457.72,0.00019999,2]
[360027033,1746487844099,-450.0,0.00019999,2]
[360027034,1746487844108,-537.24,0.00019999,2]
[360027035,1746487844118,-325.05,0.00019999,2]
[360027036,1746487844127,-457.72,0.00019999,2]
[360027037,1746487844136,-457.72,0.00019999,2]
[360027038,1746487844145,-457.72,0.00019999,2]
[360027039,1746487844154,-457.72,0.00019999,2]
[360027040,1746487844163,-457.72,0.00019999,2]
[360027041,1746487844172,-457.81,0.00019999,2]
[360027042,1746487844182,-450.0,0.00019999,2]
[360027043,1746487844191,-450.0,0.00019999,2]
[360027044,1746487844200,-450.0,0.00019999,2]
[360027045,1746487844213,-450.0,0.00019999,2]
[360027046,1746487844223,-450.0,0.00019999,2]
[360027047,1746487844232,-268.06,0.00019999,2]
[360027048,1746487844241,-450.0,0.00019999,2]
[360027049,1746487844251,-450.0,0.00019999,2]
[360027050,1746487844260,-450.0,0.00019999,2]
[360027051,1746487844270,-450.0,0.00019999,2]
[360027052,1746487844282,-450.0,0.00019999,2]
[360027053,1746487844291,-450.0,0.00019999,2]
[360027054,1746487844301,-450.0,0.00019999,2]
[360027055,1746487844311,-450.0,0.00019999,2]
[360027056,1746487844320,-450.0,0.00019999,2]
[360027057,1746487844329,-276.04,0.00019999,2]
[360027058,1746487844338,-450.0,0.00019999,2]
[360027059,1746487844349,-450.0,0.00019999,2]
[360027060,1746487844358,-450.0,0.00019999,2]
[360027061,1746487844369,-531.71,0.00019999,2]
[360027062,1746487844380,-7571.95,0.00019999,2]
[360027063,1746487844390,-7571.95,0.00019999,2]
[360027064,1746487844400,-7571.95,0.00019999,2]
[360027065,1746487844411,-7571.95,0.00019999,2]
[360027066,1746487844420,-7571.95,0.00019999,2]
[360027067,1746487844431,-7571.95,0.00019999,2]
[360027068,1746487844442,-7571.95,0.00019999,2]
[360027069,1746487844454,-7571.95,0.00019999,2]
[360027070,1746487844463,-7571.95,0.00019999,2]
[360027071,1746487844472,-7571.95,0.00019999,2]
[360027072,1746487844481,-7571.95,0.00019999,2]
[360027073,1746487844490,-7571.95,0.00019999,2]
[360027074,1746487844499,-7571.95,0.00019999,2]
[360027075,1746487844508,-450.0,0.00019999,2]
[360027076,1746487844520,-477.21125576,0.00019999,2]
[360027077,1746487844529,-7571.95,0.00019999,2]
[360027078,1746487844538,-7571.95,0.00019999,2]
[360027079,1746487844547,-7571.95,0.00019999,2]
[360027080,1746487844556,-7571.95,0.00019999,2]
[360027081,1746487844565,-7571.95,0.00019999,2]
[360027082,1746487844574,-7571.95,0.00019999,2]
[360027083,1746487844583,-7571.95,0.00019999,2]
[360027084,1746487844592,-7571.95,0.00019999,2]
[360027085,1746487844601,-7571.987,0.00019999,2]
[360027086,1746487844611,-450.0,0.00019999,2]
[360027087,1746487844620,-450.0,0.00019999,2]
[360027088,1746487844629,-450.0,0.00019999,2]
[360027089,1746487844638,-536.29874379,0.00019999,2]
[360027090,1746487844647,-450.0,0.00019999,2]
[360027091,1746487844656,-470.0,0.00019999,2]
[360027092,1746487844666,-450.0,0.00019999,2]
[360027093,1746487844675,-450.0,0.00019999,2]
[360027094,1746487844684,-450.0,0.00019999,2]
[360027095,1746487844693,-450.0,0.00019999,2]
[360027096,1746487844702,-450.0,0.00019999,2]
[360027097,1746487844711,-450.0,0.00019999,2]
[360027098,1746487844720,-450.0,0.00019999,2]
[360027099,1746487844729,-450.0,0.00019999,2]
[360027100,1746487844738,-450.0,0.00019999,2]
[360027101,1746487844747,-450.0,0.00019999,2]
[360027102,1746487844756,-450.0,0.00019999,2]
[360027103,1746487844766,-450.0,0.00019999,2]
[360027104,1746487844775,-450.0,0.00019999,2]
[360027105,1746487844784,-450.0,0.00019999,2]
[360027106,1746487844793,-450.0,0.00019999,2]
[360027107,1746487844803,-450.0,0.00019999,2]
[360027108,1746487844812,-450.0,0.00019999,2]
[360027109,1746487844821,-450.0,0.00019999,2]
[360027110,1746487844830,-450.0,0.00019999,2]
[360027111,1746487844839,-450.0,0.00019999,2]
[360027112,1746487844848,-362.01115913,0.00019999,2]
[360027113,1746487844857,-393.14,0.00019999,2]
[360027114,1746487844867,-450.0,0.00019999,2]
[360027115,1746487844876,-450.0,0.00019999,2]
[360027116,1746487844885,-450.0,0.00019999,2]
[360027117,1746487844896,-450.0,0.00019999,2]
[360027118,1746487844905,-450.0,0.00019999,2]
[360027119,1746487844914,-450.0,0.00019999,2]
[360027120,1746487844923,-450.0,0.00019999,2]
[360027121,1746487844932,-450.0,0.00019999,2]
[360027122,1746487844942,-450.0,0.00019999,2]
[360027123,1746487844951,-450.0,0.00019999,2]
[360027124,1746487844960,-450.0,0.00019999,2]
[360027125,1746487844970,-450.0,0.00019999,2]
[360027126,1746487844979,-502.86,0.00019999,2]
[360027127,1746487844988,-450.0,0.00019999,2]
[360027128,1746487844997,-450.0,0.00019999,2]
[360027129,1746487845007,-450.0,0.00019999,2]
[360027130,1746487845016,-450.0,0.00019999,2]
[360027131,1746487845025,-410.94,0.00019999,2]
[360027132,1746487845034,-549.0,0.00019999,2]
[360027133,1746487845043,-747.07047896,0.0002,2]
[360027134,1746487845052,-633935.84600455,0.0002,2]
[360027135,1746487845062,-845594.86956504,0.0002,2]
[360027136,1746487845071,-23753.78711987,0.0002,2]
[360027137,1746487845452,-450.0,0.00019997,2]
[360027138,1746487845461,-450.0,0.00019998,2]
[360027139,1746487845470,-450.0,0.00019999,2]
[360027140,1746487845479,-450.0,0.00019999,2]
[360027141,1746487845488,-6365.5691154,0.0002,2]
[360027142,1746487845499,-2164.215192,0.0002,2]
[360027143,1746487845543,-183.49300505,0.000199,2]
[360027144,1746487845552,-286.50699495,0.00019999,2]
[360027145,1746487845564,-152.91300505,0.00019999,2]
[360027146,1746487845573,-450.0,0.00019999,2]
[360027147,1746487845582,-450.0,0.00019999,2]
[360027148,1746487845591,-292.99,0.00019999,2]
[360027149,1746487845600,-157986.02817713,0.0002,2]
[360027150,1746487845610,-189385.51098873,0.0002,2]
[360027152,1746487846360,-723.73,0.0002,2]
[360027153,1746487846451,-378.43528873,0.0002,2]
[360027157,1746487849306,971.0,0.000194,2]
[360027158,1746487878018,250.0,0.00017,2]
[360027159,1746487879085,300.0,0.00019,2]
[360027185,1746488077108,180.01,0.00019002,2]
[360027187,1746488136250,847.01,0.00019502,2]
[360027188,1746488136272,1152.99,0.00019502,2]
[360027194,1746488201242,1000.0,0.00018951,2]
[360027195,1746488284748,386.15382362,0.00030136,120]
[360027196,1746488299293,277.4,0.0003,30]
[360027202,1746488489226,-153.4,0.000196,2]
[360027203,1746488492557,-200.0,0.000196,2]
[360027206,1746488684511,563.94,0.00016976,2]
[360027207,1746488684746,563.94,0.0001924,2]
[360027208,1746488761932,163.89,0.00019454,2]
[360027211,1746488935630,1800.0,0.0003,30]
[360027228,1746489032240,-617.6,0.000196,2]
[360027230,1746489032250,-1670.93302201,0.000196,2]
[360027232,1746489032263,-63.6295298,0.000196,2]
[360027233,1746489032272,-200.0,0.000196,2]
[360027234,1746489032283,-250.0,0.00019606,2]
[360027235,1746489032292,-1200.0,0.00019632,2]
[360027236,1746489032302,-300.0,0.00019632,2]
[360027237,1746489032311,-1734.56255181,0.00019633,2]
[360027238,1746489032320,-200.0,0.0001965,2]
[360027239,1746489032330,-1734.56255181,0.00019667,2]
[360027240,1746489032340,-151.0,0.00019688,2]
[360027241,1746489032350,-151.0,0.00019688,2]
[360027242,1746489032359,-207.4,0.00019688,2]
[360027243,1746489032370,-674.84024996,0.00019688,2]
[360027244,1746489032379,-1620.20000006,0.0001969,2]
[360027245,1746489032388,-814.0,0.00019698,2]
[360027246,1746489032397,-9050.0370584,0.00019699,2]
[360027247,1746489032407,-500.0,0.00019699,2]
[360027248,1746489032416,-500.0,0.00019699,2]
[360027249,1746489032425,-500.0,0.00019699,2]
[360027250,1746489032435,-500.0,0.00019699,2]
[360027251,1746489032444,-500.0,0.00019699,2]
[360027252,1746489032453,-500.0,0.00019699,2]
[360027253,1746489032465,-500.0,0.00019699,2]
[360027254,1746489032475,-500.0,0.00019699,2]
[360027255,1746489032484,-500.0,0.00019699,2]
[360027256,1746489032493,-500.0,0.00019699,2]
[360027257,1746489032503,-500.0,0.00019699,2]
[360027258,1746489032514,-500.0,0.00019699,2]
[360027259,1746489032523,-415.10860976,0.00019699,2]
[360027260,1746489032533,-56063.67725438,0.000197,2]
[360027261,1746489032546,-20662.50821375,0.000197,2]
[360027262,1746489032555,-1734.56255181,0.000197,2]
[360027263,1746489032564,-200.0,0.000197,2]
[360027264,1746489032574,-150.99,0.000197,2]
[360027265,1746489032583,-9999.99,0.000197,2]
[360027266,1746489032592,-189.92,0.000197,7]
[360027267,1746489032601,-42188.2303884,0.000197,2]
[360027268,1746489032613,-558.99099853,0.000197,2]
[360027430,1746489038618,-21269.83861307,0.000197,2]
[360027432,1746489038628,-150.99,0.000197,2]
[360027434,1746489038637,-200.0,0.0001972,2]
[360027436,1746489038646,-1734.56255181,0.00019733,2]
[360027438,1746489038655,-1734.56255181,0.00019767,2]
[360027440,1746489038665,-270.2388,0.00019784,2]
[360027442,1746489038674,-2015.2443,0.00019784,2]
[360027444,1746489038683,-2500.0,0.000198,2]
[360027446,1746489038693,-1734.56255181,0.000198,2]
[360027448,1746489038702,-971.0,0.000198,2]
[360027450,1746489038712,-1734.56255181,0.00019833,2]
[360027452,1746489038721,-1734.56255181,0.00019867,2]
[360027454,1746489038730,-28525.578,0.00019884,2]
[360027456,1746489038739,-165.14216265,0.00019885,2]
[360027458,1746489038748,-959.24362226,0.00019886,2]
[360027460,1746489038760,-205.07581608,0.00019886,2]
[360027462,1746489038769,-574.46418392,0.00019888,2]
[360027464,1746489038780,-329.7290537,0.00019888,2]
[360027466,1746489038791,-260.12620072,0.00019888,2]
[360027468,1746489038799,-485.04281936,0.00019889,2]
[360027473,1746489038832,-403.3,0.00019889,2]
[360027475,1746489038843,-275.97661898,0.00019889,2]
[360027477,1746489038852,-1164.31943834,0.00019891,2]
[360027479,1746489038861,-1164.31943834,0.00019892,2]
[360027481,1746489038870,-1164.31943834,0.00019894,2]
[360027483,1746489038880,-1164.31943834,0.00019895,2]
[360027485,1746489038889,-890.31385066,0.00019897,2]
[360027487,1746489038900,-274.00558768,0.00019897,2]
[360027489,1746489038909,-829.78145351,0.00019898,2]
[360027499,1746489040552,-334.53798483,0.00019898,2]
[360027500,1746489040561,-450.0,0.00019899,2]
[360027501,1746489040571,-450.0,0.00019899,2]
[360027502,1746489040580,-450.0,0.00019899,2]
[360027503,1746489040590,-450.0,0.00019899,2]
[360027504,1746489040599,-581.21,0.00019899,2]
[360027505,1746489040608,-450.0,0.00019899,2]
[360027506,1746489040617,-266.44407434,0.00019899,2]
[360027507,1746489040627,-450.0,0.00019899,2]
[360027508,1746489040637,-450.0,0.00019899,2]
[360027509,1746489040646,-450.0,0.00019899,2]
[360027510,1746489040655,-450.0,0.00019899,2]
[360027511,1746489040665,-450.0,0.00019899,2]
[360027512,1746489040674,-450.0,0.00019899,2]
[360027513,1746489040683,-3171.53561903,0.000199,2]
[360027514,1746489040695,-13538.58278097,0.000199,2]
[360027515,1746489040704,-261.250701,0.000199,2]
[360027516,1746489040713,-1164.31943834,0.000199,2]
[360027517,1746489040722,-1734.56255181,0.000199,2]
[360027518,1746489040732,-165.14216264,0.000199,2]
[360027519,1746489040741,-150.0,0.00019918,7]
[360027520,1746489040750,-500.0,0.00019973,2]
[360027521,1746489040760,-450.0,0.00019983,2]
[360027522,1746489040770,-450.0,0.00019984,2]
[360027523,1746489040779,-450.0,0.00019984,2]
[360027524,1746489040789,-450.0,0.00019984,2]
[360027525,1746489040798,-450.0,0.00019984,2]
[360027526,1746489040808,-450.0,0.00019984,2]
[360027527,1746489040817,-510.0,0.00019984,2]
[360027528,1746489040829,-510.0,0.00019984,2]
[360027529,1746489040839,-450.0,0.00019984,2]
[360027530,1746489040849,-450.0,0.00019984,2]
[360027531,1746489040859,-450.0,0.00019984,2]
[360027532,1746489040868,-450.0,0.00019984,2]
[360027533,1746489040878,-450.0,0.00019984,2]
[360027534,1746489040888,-479.58872183,0.00019984,2]
[360027535,1746489040898,-450.0,0.00019984,2]
[360027536,1746489040908,-473.8258779,0.00019984,2]
[360027537,1746489040918,-450.0,0.00019984,2]
[360027538,1746489040928,-560.2752072,0.00019984,2]
[360027539,1746489040938,-450.0,0.00019984,2]
[360027540,1746489040947,-450.0,0.00019984,2]
[360027541,1746489040957,-450.0,0.00019984,2]
[360027542,1746489040967,-450.0,0.00019984,2]
[360027543,1746489040976,-450.0,0.00019984,2]
[360027544,1746489040985,-450.0,0.00019984,2]